[Event "5th Sharjah Masters 2022"]
[Site "Sharjah"]
[Date "2022.05.21"]
[Round "1.20"]
[White "Gunina, Valentina"]
[Black "Chigaev, Maksim"]
[Result "0-1"]
[ECO "D38"]
[WhiteElo "2471"]
[BlackElo "2631"]
[Annotator "TA"]
[PlyCount "178"]
[EventDate "2022.05.21"]
[EventType "swiss"]
[EventCountry "UAE"]
[SourceTitle "playchess.com"]
[Source "ChessBase"]
[SourceQuality "1"]
[TimeControl "5400+30"]

{[%evp 24,178,40,37,47,44,55,54,51,51,58,52,56,46,53,50,55,43,47,46,40,11,29,7,33,0,0,0,0,0,0,0,5,4,4,7,0,0,12,12,39,0,7,0,53,53,60,8,26,0,0,3,8,8,30,0,31,0,60,60,148,142,140,134,141,141,213,201,196,0,118,0,0,0,0,0,0,0,0,0,0,0,0,0,0,0,0,0,0,0,0,0,0,0,0,-8,-8,-9,-9,-116,-145,-303,-303,-322,-303,-303,-308,-5297,-739,-730,-700,-565,-558,-532,-291,-290,0,-236,0,-229,-126,-765,-758,-747,-732,-732,-731,-718,-716,-686,-583,-833,-807,-1168,-554,-525,-515,-671,-671,-1106,-654,-1171,-1119,-1254,-1183,-1208,-1102,-6095,-6070,-5791,-5718,-5326,-5165,-3572,-2707,-1599,-1291]} 1. d4 {[%emt 0:00:04]} Nf6 {[%emt 0:00:12]} 2. c4 {[%emt 0:00:05]} e6 {[%emt 0:00:07]} 3. Nf3 {[%emt 0:00:06]} d5 {[%emt 0:00:08]} 4. Nc3 {[%emt 0:00:18]} Bb4 {[%emt 0:00:13]} 5. Bg5 {[%emt 0:00:23]} h6 {[%emt 0:00:27]} 6. Bxf6 {[%emt 0:01:55]} Qxf6 {[%emt 0:00:42]} 7. e3 {[%emt 0:00:16]} O-O {[%emt 0:01:55]} 8. Rc1 {[%emt 0:00:07]} Rd8 {[%emt 0:02:25]} 9. a3 {[%emt 0:04:54]} Bxc3+ {[%emt 0:18:17]} 10. Rxc3 {[%emt 0:00:25]} dxc4 {[%emt 0:05:14]} 11. Rxc4 {[%emt 0:00:59]} Nc6 {[%emt 0:00:40]} 12. Rc5 {[%emt 0:03:51]} Rd5 {[%emt 0:05:51]} 13. Qc2 {[%emt 0:00:31]} Rxc5 {[%emt 0:03:14]} 14. Qxc5 {[%emt 0:00:30]} Qf5 {[%emt 0:00:21]} 15. Qxf5 {[%emt 0:01:18]} exf5 {[%emt 0:00:08]} 16. Bc4 {[%emt 0:00:21]} Bd7 {[%emt 0:04:51]} 17. Kd2 {[%emt 0:01:04]} Rd8 {[%emt 0:03:53]} 18. Rc1 {[%emt 0:03:32]} Ne7 {[%emt 0:00:44]} 19. Ne5 {[%emt 0:04:40]} Be8 {[%emt 0:03:08]} 20. Ba2 {[%emt 0:02:20]} c6 {[%emt 0:00:27]} 21. g3 {[%emt 0:00:53]} g5 {[%emt 0:02:20]} 22. f4 {[%emt 0:04:07]} g4 {[%emt 0:03:54]} 23. b4 {[%emt 0:02:39]} a6 {[%emt 0:07:16]} 24. Rc5 {[%emt 0:05:56]} Kg7 {[%emt 0:00:48]} 25. Nc4 {[%emt 0:04:49]} f6 {[%emt 0:01:31]} 26. Bb1 {[%emt 0:04:01]} Bf7 {[%emt 0:06:34]} 27. Nb6 {[%emt 0:08:20]} Be6 {[%emt 0:03:41]} 28. Rc1 {[%emt 0:00:09]} h5 {[%emt 0:02:17]} 29. h4 {[%emt 0:01:19]} gxh3 {[%emt 0:05:06]} 30. Rh1 {[%emt 0:00:16]} Kg6 {[%emt 0:00:14]} 31. Rxh3 {[%emt 0:00:25]} Bd5 {[%emt 0:01:29]} 32. Bd3 {[%emt 0:01:59]} Bf3 {[%emt 0:00:38]} 33. Rh2 {[%emt 0:03:19]} Nc8 {[%emt 0:06:30]} (33... Rh8 $11) 34. Nxc8 $14 {[%emt 0:01:43]} Rxc8 {[%emt 0:00:02]} 35. Rf2 {[%emt 0:00:12]} (35. a4 $14) 35... Bd5 {[%emt 0:00:27]} 36. Be2 {[%emt 0:01:34]} b5 {[%emt 0:00:49]} 37. Rh2 {[%emt 0:39:40]} Rh8 {[%emt 0:00:06]} 38. Bd1 {[%emt 0:00:00]} Rh7 {[%emt 0:00:20]} 39. Kc3 {[%emt 0:00:00]} Rh8 {[%emt 0:00:20]} 40. a4 {[%emt 0:00:00]} Rh7 {[%emt 0:00:46]} (40... bxa4 $11 41. Bxa4 Re8) 41. a5 $14 {[%emt 0:00:00]} Rh8 {[%emt 0:00:13]} (41... Kf7 $1 $14) 42. Kd2 {[%emt 0:00:00]} Rh7 {[%emt 0:00:18]} 43. Ke1 {[%emt 0:00:00]} Rh8 {[%emt 0:01:40]} 44. Kf2 {[%emt 0:00:00]} Rh7 {[%emt 0:00:08]} (44... Ba2 $16 45. Bc2 Rd8) 45. Be2 $18 {[%emt 0:00:00]} Be4 {[%emt 0:01:05]} 46. Bd1 $2 {[%emt 0:00:00]} (46. Bf3 $18) 46... Rh8 {[%emt 0:00:25]} (46... Bd5 $11) 47. g4 {[%emt 0:00:00]} (47. Rh4 $16) 47... fxg4 {[%emt 0:03:53]} 48. Bxg4 {[%emt 0:00:00]} h4 {[%emt 0:00:16]} 49. Bf3 {[%emt 0:00:00]} Kf5 {[%emt 0:00:10]} 50. Rh1 {[%emt 0:00:00]} h3 {[%emt 0:01:45]} 51. Rc1 {[%emt 0:00:00]} Bxf3 {[%emt 0:02:42]} 52. Kxf3 {[%emt 0:00:00]} h2 {[%emt 0:00:02]} 53. e4+ {[%emt 0:00:00]} Ke6 {[%emt 0:01:08]} 54. f5+ {[%emt 0:00:00]} Kd6 {[%emt 0:01:00]} 55. Rh1 $1 {[%emt 0:00:00]} Rh4 {[%emt 0:00:30]} 56. Ke3 {[%emt 0:00:00]} Kd7 {[%emt 0:01:33]} 57. Kf3 {[%emt 0:00:00]} Ke7 {[%emt 0:00:13]} (57... Kd6 $5) 58. Ke3 {[%emt 0:00:57]} Kf7 {[%emt 0:00:59]} 59. Kf3 {[%emt 0:00:13]} Kg7 {[%emt 0:01:57]} 60. e5 {[%emt 0:08:01]} Rxd4 {[%emt 0:00:07]} 61. e6 {[%emt 0:00:16]} (61. Rxh2 $11 fxe5 62. Rg2+ Kf6 63. Rg6+ Kxf5 64. Rxc6) 61... Rd2 {[%emt 0:00:13]} ({Of course not} 61... Rxb4 $6 62. Rxh2 Rb3+ 63. Ke4 $11) 62. Kg3 $2 {[%emt 0:00:52]} (62. Ke3 $17 Rb2 63. Kf3) 62... Kf8 $1 $19 {[%emt 0:00:14]} 63. Kh3 {[%emt 0:01:36]} (63. Rxh2 Rxh2 64. Kxh2 c5 65. bxc5 Ke7 66. Kh3 b4 67. Kg4 b3 68. c6 Kd6 69. Kf4 Kxc6 70. e7 Kd7 71. Ke4 b2 72. e8=R Kxe8 73. Ke3 b1=Q 74. Kf2 Qd1 75. Kg2 Qe2+ 76. Kh1 Kd7 77. Kg1 Kc6 78. Kh1 Kd5 79. Kg1 Ke4 80. Kh1 Kf3 81. Kg1 Qg2#) 63... Ke7 {[%emt 0:00:26]} 64. Kg3 {[%emt 0:00:04]} Rc2 {[%emt 0:00:58]} 65. Kg4 $2 {[%emt 0:00:45]} (65. Rd1 c5 66. bxc5) 65... Rf2 {[%emt 0:01:04]} (65... c5 $142 66. bxc5 b4) 66. Rd1 $19 {[%emt 0:00:30]} Rg2+ {[%emt 0:01:19]} 67. Kh3 {[%emt 0:00:08]} Rd2 {[%emt 0:00:09]} 68. Rh1 {[%emt 0:00:46]} Kd6 {[%emt 0:01:11]} 69. Kg4 {[%emt 0:01:00]} Ke7 $2 {[%emt 0:00:11]} ({Black should play} 69... c5 $19 70. bxc5+ Kc7) 70. Kg3 $2 {[%emt 0:00:15]} (70. Kh3 $11 {and White has nothing to worry.}) 70... Rc2 $2 {[%emt 0:00:07]} (70... Kd8 $19 {[%cal Oc6c5] Hoping for ...c5!} 71. Rc1 (71. Rxh2 Rxh2 72. Kxh2 c5 73. bxc5 b4 74. Kg3 b3 75. Kf4 b2 76. Ke4 b1=Q+ 77. Kd4 Qc2 78. c6 Qxc6 79. Ke3 Qc5+ 80. Kf4 Qe5+ 81. Kf3 Ke7 82. Kg2 Qxf5 83. Kg3 Kxe6 84. Kg2 Qf4 85. Kh1 Qd2 86. Kg1 Kf5 87. Kf1 Kf4 88. Kg1 Kf3 89. Kh1 Qg2#) 71... c5 72. bxc5 b4) 71. Rd1 $2 {[%emt 0:00:11] [#]} (71. Kg4 $1 $11) 71... Ke8 {[%emt 0:00:25]} (71... c5 $1 $19 {[%cal Rc5b4]} 72. bxc5 b4) 72. Kh3 $2 {[%emt 0:01:06][%mdl 8192] [#]} (72. Rf1 $17) 72... Rf2 $1 $19 {[%emt 0:00:39]} 73. Rc1 {[%emt 0:00:42]} Ke7 {[%emt 0:00:31]} 74. Kg3 {[%emt 0:00:10]} Rxf5 {[%emt 0:00:21]} 75. Kxh2 {[%emt 0:00:05]} Kd6 {[%emt 0:01:01]} 76. Kg3 {[%emt 0:00:48]} Re5 {[%emt 0:00:07]} 77. Kf4 {[%emt 0:00:07]} Rxe6 {[%emt 0:00:11]} 78. Kf5 {[%emt 0:00:29]} Re2 {[%emt 0:01:25]} (78... Re5+ $142 79. Kf4 c5 80. Rd1+ Rd5 81. bxc5+ Kxc5 82. Rc1+ Kb4) 79. Rd1+ $19 {[%emt 0:00:30]} Ke7 {[%emt 0:00:25]} 80. Rc1 {[%emt 0:00:28]} Re5+ {[%emt 0:00:07]} 81. Kg6 {[%emt 0:00:21]} Rg5+ {[%emt 0:00:18]} 82. Kh6 {[%emt 0:00:03]} Kd7 {[%emt 0:00:14]} 83. Rd1+ {[%emt 0:00:31]} Rd5 {[%emt 0:00:16]} 84. Rb1 {[%emt 0:00:28]} c5 {[%emt 0:00:20]} 85. bxc5 {[%emt 0:00:07]} Kc6 {[%emt 0:00:07]} 86. Kg6 {[%emt 0:00:26]} f5 {[%emt 0:00:10]} 87. Kf6 {[%emt 0:00:31]} Rxc5 {[%emt 0:00:08]} 88. Ke6 {[%emt 0:00:06]} f4 {[%emt 0:00:19]} 89. Rd1 {[%emt 0:00:03]} b4 {[%emt 0:00:06]} 0-1

[Event "5th Sharjah Masters 2022"]
[Site "Sharjah"]
[Date "2022.05.21"]
[Round "1.21"]
[White "Yilmaz, Mustafa"]
[Black "Nikolov, Momchil"]
[Result "1-0"]
[ECO "D41"]
[WhiteElo "2631"]
[BlackElo "2454"]
[Annotator "TA"]
[PlyCount "78"]
[EventDate "2022.05.21"]
[EventType "swiss"]
[EventCountry "UAE"]
[SourceTitle "playchess.com"]
[Source "ChessBase"]
[SourceQuality "1"]
[TimeControl "5400+30"]

{[%evp 21,78,4,23,31,30,4,8,0,0,5,0,0,0,0,48,24,32,8,53,45,89,86,79,94,160,158,133,105,155,161,297,169,333,309,319,309,266,267,380,375,372,300,372,372,360,297,566,514,501,408,619,619,612,612,612,612,604,604,1232]} 1. d4 {[%emt 0:00:04] Edouard,Romain} Nf6 {[%emt 0:00:12]} 2. c4 {[%emt 0:00:05]} e6 {[%emt 0:00:07]} 3. Nf3 {[%emt 0:00:06]} d5 {[%emt 0:00:12]} 4. Nc3 {[%emt 0:00:05]} c5 {[%emt 0:00:09]} 5. cxd5 {[%emt 0:00:05]} Nxd5 {[%emt 0:00:06]} 6. e4 {[%emt 0:00:04]} Nxc3 {[%emt 0:00:09]} 7. bxc3 {[%emt 0:00:04]} cxd4 {[%emt 0:00:07]} 8. cxd4 {[%emt 0:00:03]} Bb4+ {[%emt 0:00:06]} 9. Bd2 {[%emt 0:00:02]} Bxd2+ {[%emt 0:00:10]} 10. Qxd2 {[%emt 0:00:06]} O-O {[%emt 0:00:08]} 11. Bc4 {[%emt 0:00:05]} Nd7 {[%emt 0:00:15]} 12. O-O {[%emt 0:00:06] D41: Queen's Gambit Declined: Semi-Tarrasch with 5 cxd5.} b6 {[%emt 0:00:06]} 13. d5 {[%emt 0:00:03]} Nc5 {[%emt 0:06:48]} 14. Rfe1 {[%emt 0:00:08][%cal Bf1e1,Be1e3,Be3e7][%mdl 32] The position is equal.} exd5 {[%emt 0:04:59]} 15. exd5 {[%emt 0:00:10]} Qd6 {[%emt 0:03:04]} 16. Qd4 {[%emt 0:00:12]} Bb7 {[%emt 0:09:14]} 17. Rad1 {[%emt 0:00:59] [#]} Nd7 $146 {[%emt 0:16:21]} (17... a6 $11) ({Predecessor:} 17... Rae8 18. Ne5 a6 19. a3 Re7 20. Re3 Rfe8 21. Nxf7 Kxf7 22. Re6 Qd8 23. Qf4+ Kg8 24. Rxe7 Rxe7 25. d6+ Re6 26. d7 g6 27. Rd6 {1-0 (27) Giri,A (2764)-Nepomniachtchi,I (2784) chess24.com INT 2020 CBM 197 [Edouard,Romain]}) 18. Nh4 {[%emt 0:34:39][%cal Od4g7] Strongly threatening Qxg7+!} (18. Qe3 $5 {[%cal Re3e7]}) 18... g6 {[%emt 0:03:13]} 19. Re3 {[%emt 0:04:29][%cal Oh4f5]} Qf6 {[%emt 0:24:48] Prevents Nf5.} 20. d6 $40 {[%emt 0:06:37][%mdl 128] White attacks.} Rae8 {[%emt 0:05:26]} 21. Qxf6 {[%emt 0:06:28]} Nxf6 {[%emt 0:00:08] [#]} 22. Re7 {[%emt 0:00:02]} Rc8 {[%emt 0:13:13]} (22... Bc6 $142) 23. Bb3 $16 {[%emt 0:04:43]} ({Don't do} 23. Rxb7 $6 Rxc4 24. g3 Rd8 $14) 23... Rb8 {[%emt 0:03:05]} 24. f3 {[%emt 0:04:33]} Kg7 {[%emt 0:02:12]} (24... Bc6 $142) 25. g4 {[%emt 0:02:52] 0x0.00252cf937a7dp-1022s more active pieces.} h6 {[%emt 0:01:28]} (25... Bc6 $142 26. Rc1 (26. Rxa7 Rb7 $16) 26... Ba8 27. Rxa7 Kh6) 26. Kf2 {[%emt 0:01:50]} (26. f4 $142) 26... a5 $2 {[%emt 0:00:19]} (26... Bc6 27. Rc7 (27. Rxa7 Rb7 $16) 27... Rbc8) 27. d7 $18 {[%emt 0:07:00]} Rbd8 {[%emt 0:03:33]} 28. Rd6 {[%emt 0:00:07] Against Bc6} b5 {[%emt 0:00:53]} 29. a3 {[%emt 0:00:18]} b4 {[%emt 0:01:06]} (29... Ba8 $142 30. Kg2 Bb7) 30. axb4 {[%emt 0:01:31] Chess con chili.} axb4 {[%emt 0:00:03]} 31. Ke3 {[%emt 0:02:14]} ({Weaker is} 31. Bc2 Ng8 32. Rxg6+ Kh8 $16) 31... Ba8 {[%emt 0:01:44]} 32. h3 {[%emt 0:07:44]} Bb7 {[%emt 0:00:45]} 33. Kd4 {[%emt 0:02:23]} Bc8 $2 {[%emt 0:01:28]} (33... Rxd7 34. Rexd7 Nxd7 35. Rxd7 Bc8) 34. dxc8=N {[%emt 0:00:46]} Rxc8 {[%emt 0:00:20]} 35. Rb7 {[%emt 0:04:14]} Rc1 {[%emt 0:01:20]} (35... Rb8 $142) 36. Ng2 {[%emt 0:01:45] White is clearly winning.} Rc3 {[%emt 0:00:24] [#]} 37. Nf4 $1 {[%emt 0:01:37] White wants to mate with Ne6+.} Rxb3 {[%emt 0:00:46]} 38. Ne6+ {[%emt 0:00:06]} Kg8 {[%emt 0:00:14]} 39. Nxf8 {[%emt 0:00:05][%mdl 64] Discovered Attack} Rxf3 {[%emt 0:00:41] Weighted Error Value: White=0.15 (very precise) /Black=0.51} 1-0

[Event "5th Sharjah Masters 2022"]
[Site "Sharjah"]
[Date "2022.05.21"]
[Round "1.22"]
[White "Mammadzada, Gunay"]
[Black "Yakubboev, Nodirbek"]
[Result "0-1"]
[ECO "B90"]
[WhiteElo "2454"]
[BlackElo "2630"]
[Annotator "TA"]
[PlyCount "88"]
[EventDate "2022.05.21"]
[EventType "swiss"]
[EventCountry "UAE"]
[SourceTitle "playchess.com"]
[Source "ChessBase"]
[SourceQuality "1"]
[TimeControl "5400+30"]

{[%evp 15,88,4,18,14,7,0,0,12,0,8,6,14,16,0,0,0,0,0,57,58,132,118,133,43,36,33,21,38,97,0,0,-22,114,104,114,91,96,0,51,0,0,0,73,-101,-120,-223,-229,-227,-229,-550,-373,-384,-242,-234,-227,-326,-304,-293,-292,-431,-330,-771,-760,-1791,-1799,-29966,-1947,-2075,-1838,-1824,-1777,-1567,-1540,-1476,-1402]} 1. e4 {[%emt 0:00:08]} c5 {[%emt 0:00:03]} 2. Nf3 {[%emt 0:00:07]} d6 {[%emt 0:00:09]} 3. d4 {[%emt 0:00:18]} cxd4 {[%emt 0:00:14]} 4. Nxd4 {[%emt 0:00:02]} Nf6 {[%emt 0:00:09]} 5. Nc3 {[%emt 0:00:03]} a6 {[%emt 0:00:06]} 6. Be3 {[%emt 0:00:05]} e5 {[%emt 0:00:07]} 7. Nb3 {[%emt 0:00:09]} Be6 {[%emt 0:00:13]} 8. Qd2 {[%emt 0:00:11]} Nbd7 {[%emt 0:00:19]} 9. O-O-O {[%emt 0:01:16] B90: Sicilian Najdorf: Unusual White 6th moves, 6 Be3 Ng4 and 6 Be3 e5.} Be7 {[%emt 0:05:11] 9...b5 is more advanced technology.} 10. h3 {[%emt 0:01:12]} b5 {[%emt 0:07:56]} 11. g4 {[%emt 0:13:13] The position is equal.} b4 {[%emt 0:11:04]} 12. Nd5 {[%emt 0:00:13]} Bxd5 {[%emt 0:02:21]} 13. exd5 {[%emt 0:00:05]} a5 {[%emt 0:01:03]} 14. Kb1 {[%emt 0:05:21]} (14. Bb5 {feels hotter.} a4 15. Nc5 dxc5 16. d6) 14... O-O {[%emt 0:08:39]} 15. Bb5 {[%emt 0:11:15] [#]} a4 $146 {[%emt 0:14:05]} ({Predecessor:} 15... Nb6 16. Bc6 Nc4 17. Qd3 Nxe3 18. fxe3 Ra7 19. Nd2 Nd7 20. Ne4 Bh4 21. c4 bxc3 22. Qxc3 {1-0 (55) Mcdermott,F (2185)-Nucci,L (2255) ICCF email 2017}) 16. Nc1 {[%emt 0:00:59]} Qa5 {[%emt 0:06:22]} (16... a3 $11 17. Qxb4 axb2 18. Kxb2 Qc7) 17. Bc6 $14 {[%emt 0:04:36] A strong pair of Bishops.} a3 {[%emt 0:03:44]} 18. Nb3 $16 {[%emt 0:05:47]} Qa6 {[%emt 0:04:21][%cal Oa3b2] Threatens to win with ...axb2!} 19. Qxb4 {[%emt 0:17:51]} ({Don't play} 19. Bxa8 Rxa8 20. Qd3 Qa4 21. bxa3 (21. Nc1 axb2 22. Kxb2 Rc8 $11) 21... Qxa3 $14) (19. g5 $16 axb2 20. a4 bxa3 21. gxf6 Nxf6 22. Qd3) 19... axb2 $14 {[%emt 0:00:31][%csl Ga8][%cal Ra6a2]} 20. a4 {[%emt 0:00:16]} Rfb8 {[%emt 0:03:46]} 21. Bb5 {[%emt 0:01:35]} Qb7 {[%emt 0:02:25] [#]} (21... Ne4 $14) 22. c4 {[%emt 0:15:31]} (22. Na5 $1 $16 {[%cal Ra5b7]} Rxa5 23. Qxa5) 22... Ne4 {[%emt 0:04:54][%cal Oa8a4]} (22... Nb6 $2 23. Na5 Rxa5 24. Qxa5 $18) 23. Rd3 {[%emt 0:03:24]} Nb6 {[%emt 0:09:28] [#]} (23... Qc7 $11 {keeps the balance.}) 24. Na5 $1 $16 {[%emt 0:03:25]} Qc7 {[%emt 0:01:08][%cal Ob6a4]} 25. Nc6 {[%emt 0:06:22]} Nxa4 {[%emt 0:00:11][%cal Oa4c3]} 26. Kc2 {[%emt 0:01:58] Inhibits Nac3.} (26. Nxb8 $16 Qxb8 27. Ra3) 26... Nb6 {[%emt 0:04:55]} 27. Rb1 {[%emt 0:02:19]} ({Better is} 27. Nxb8 $14 Rxb8 28. Re1) 27... Nc5 $1 $36 {[%emt 0:01:06][%mdl 2048] Black has the initiative.} 28. Rdd1 {[%emt 0:01:14]} (28. Nxb8 Nxd3 29. Kxd3 Rxb8) 28... e4 {[%emt 0:01:23]} 29. g5 $2 {[%emt 0:04:01]} (29. Nxb8 $16 {keeps the pressure on. aiming for Nc6.} Rxb8 30. Rxb2 (30. Bxc5 dxc5 31. Qa3 Qh2 $16)) 29... Nd3 $17 {[%emt 0:01:04] Black converts the advantage convincingly.} 30. Qb3 {[%emt 0:00:47] [#]} (30. Rxd3 $17 {was the only defense.} exd3+ 31. Kxd3) 30... Nxd5 $1 $19 {[%emt 0:01:52][%mdl 512]} 31. cxd5 {[%emt 0:00:54] Black must now prevent Qc4.} Ra5 $1 {[%emt 0:00:07] Really sharp!} 32. Kd2 $2 {[%emt 0:01:06]} (32. Bxd3 {is a better chance.} Rxb3 33. Kxb3 Qb7+ 34. Kc2 exd3+ 35. Rxd3) 32... Raxb5 {[%emt 0:01:47]} 33. Qc4 {[%emt 0:00:13]} R8b7 {[%emt 0:04:57][%cal Ob5b4]} 34. Qxe4 {[%emt 0:00:24]} Nc5 {[%emt 0:00:42]} 35. Qc4 {[%emt 0:01:07]} (35. Bxc5 $142 Rxc5 36. Nxe7+ Qxe7 37. Qxe7 Rxe7 38. Rxb2) 35... Bf8 {[%emt 0:00:19]} 36. Ke2 {[%emt 0:00:01]} Qd7 {[%emt 0:00:14]} 37. h4 {[%emt 0:00:53]} (37. Qg4 $142) 37... Qf5 {[%emt 0:00:28]} 38. Kf1 $2 {[%emt 0:00:30]} (38. Qf4 Qxf4 39. Bxf4) 38... Ne4 {[%emt 0:00:29][%cal Ob5c5] ...Rc5! is the strong threat.} 39. Qd3 {[%emt 0:00:35]} Rb3 {[%emt 0:00:27]} 40. Qd4 {[%emt 0:00:15]} Qf3 {[%emt 0:00:37]} (40... Qh3+ $142 41. Ke1 Nc3 42. Qd3 Qxh4 43. Nd4 Nxd1 44. Nxb3 Nxe3 45. Nd4 Ng2+ 46. Kf1 Qh1+ 47. Ke2 Nf4+ 48. Kd2 Qxd5 49. Qe3 Ne6 50. Qf3 Qxd4+ 51. Qd3 Qxf2+ 52. Qe2 Qf5 53. Qf1 Qxg5+ 54. Ke1 Nf4 55. Kd1 Qd5+ 56. Ke1 Qe5+ 57. Kf2 Rb3 58. Qd1 Qc5+ 59. Qd4 Qxd4+ 60. Kf1 Rh3 61. Ke1 Rh1#) 41. Kg1 {[%emt 0:00:17] Black is clearly winning.} Qg4+ {[%emt 0:01:06]} 42. Kh2 {[%emt 0:00:29]} Qxh4+ {[%emt 0:00:09]} 43. Kg2 {[%emt 0:00:02]} Qg4+ {[%emt 0:00:22]} 44. Kh2 {[%emt 0:00:08] [#]} Nxf2 $1 {[%emt 0:00:20][%mdl 512] Weighted Error Value: White=0.71/Black=0.52} 0-1

[Event "5th Sharjah Masters 2022"]
[Site "Sharjah"]
[Date "2022.05.21"]
[Round "1.23"]
[White "Jumabayev, Rinat"]
[Black "Badelka, Olga"]
[Result "0-1"]
[ECO "E46"]
[WhiteElo "2628"]
[BlackElo "2453"]
[Annotator "TA"]
[PlyCount "84"]
[EventDate "2022.05.21"]
[EventType "swiss"]
[EventCountry "UAE"]
[SourceTitle "playchess.com"]
[Source "ChessBase"]
[SourceQuality "1"]
[TimeControl "5400+30"]

{[%evp 9,84,-6,0,-4,0,14,7,0,12,6,18,0,0,0,0,0,-2,-1,0,-14,-6,-35,0,0,15,9,19,0,0,-6,-10,-65,-35,-69,-59,-70,-65,-83,-79,-75,-81,-94,-108,-129,-119,-106,-86,-67,-73,-80,0,0,0,0,0,-235,-235,-235,-222,-222,-222,-222,-236,-225,-216,-2138,-151,-147,484,-29979,-1300,-29982,-29982,-29990,-29991,-29991,-29992]} 1. d4 {[%emt 0:00:05]} Nf6 {[%emt 0:00:07]} 2. c4 {[%emt 0:00:44]} e6 {[%emt 0:00:07]} 3. Nc3 {[%emt 0:02:09]} Bb4 {[%emt 0:00:40]} 4. e3 {[%emt 0:00:05]} O-O {[%emt 0:00:25]} 5. Bd2 {[%emt 0:00:42]} c5 {[%emt 0:03:47]} 6. a3 {[%emt 0:01:21] E46: Nimzo-Indian: Rubinstein: 4 e3 0-0 5 Ne2 without early Bd3.} Bxc3 {[%emt 0:02:12]} 7. Bxc3 {[%emt 0:00:05]} Ne4 {[%emt 0:00:58]} 8. Rc1 {[%emt 0:08:45] The position is equal.} Nxc3 {[%emt 0:06:56]} 9. Rxc3 {[%emt 0:00:34]} b6 {[%emt 0:01:00]} 10. Nf3 {[%emt 0:02:26]} Bb7 {[%emt 0:00:53]} 11. Be2 {[%emt 0:02:47]} d6 {[%emt 0:05:42]} 12. O-O {[%emt 0:01:43]} Qe7 {[%emt 0:00:49]} 13. b4 {[%emt 0:10:19]} Nd7 {[%emt 0:01:23]} 14. Qb1 {[%emt 0:07:22] [#]} Rac8 $146 {[%emt 0:09:07]} ({Predecessor:} 14... Nf6 15. Rd1 Rac8 16. Qb2 Rc7 17. dxc5 dxc5 18. b5 e5 19. Rcc1 e4 20. Nd2 Nd7 {1-0 (53) Bischoff,K (2510)-King,D (2520) Kecskemet 1988}) 15. Rfc1 {[%emt 0:05:28]} Rc7 {[%emt 0:04:22]} 16. e4 {[%emt 0:09:43]} e5 {[%emt 0:07:59]} 17. d5 {[%emt 0:08:35]} g6 {[%emt 0:04:13]} 18. Nd2 {[%emt 0:05:41]} f5 {[%emt 0:11:39]} 19. Nb3 {[%emt 0:07:48]} Bc8 {[%emt 0:02:26]} 20. Bf3 {[%emt 0:06:22]} (20. Re1 $11) 20... Qh4 {[%emt 0:04:31]} 21. g3 {[%emt 0:06:15]} Qh6 {[%emt 0:01:30]} 22. exf5 {[%emt 0:03:11]} gxf5 {[%emt 0:00:20]} 23. Bg2 {[%emt 0:00:08]} e4 {[%emt 0:10:43]} 24. Qc2 {[%emt 0:01:26]} Ne5 {[%emt 0:00:46]} 25. bxc5 {[%emt 0:03:15]} bxc5 {[%emt 0:00:04]} 26. Nd2 {[%emt 0:02:18]} Rg7 {[%emt 0:04:44] 0x0.001259136543dp-1022s more active pieces.} ({Not} 26... Ng4 27. h3 Ne5 28. Rb1) 27. Rb1 {[%emt 0:02:21]} Ng4 {[%emt 0:10:18]} 28. h3 {[%emt 0:01:05]} Ne5 {[%emt 0:00:03] ...f4 is the strong threat.} 29. Rb8 {[%emt 0:00:34]} f4 {[%emt 0:00:43]} (29... Re7 $17) 30. Nxe4 $11 {[%emt 0:00:53]} Bxh3 {[%emt 0:04:47]} 31. Rxf8+ {[%emt 0:00:51]} Kxf8 {[%emt 0:00:01][%cal Bg8f8,Bf8g7,Bg7h8][%mdl 32]} 32. Nxd6 $2 {[%emt 0:00:53]} Bxg2 $1 $19 {[%emt 0:01:56][%csl Gg2][%cal Rh6h1] Really sharp!} 33. Qf5+ {[%emt 0:00:04] [#]} Rf7 $1 {[%emt 0:00:05][%csl Gg2][%cal Rh6h1]} 34. Qc8+ {[%emt 0:00:47]} Kg7 {[%emt 0:01:21][%csl Gg2][%cal Rh6h1]} 35. Ne8+ {[%emt 0:00:24] [#]} Kh8 $1 {[%emt 0:00:10][%csl Gg2][%cal Rh6h1]} 36. Kxg2 {[%emt 0:00:39] Hoping for Qb8.} Rf8 $40 {[%emt 0:00:48][%mdl 128] And now ...f3+ would win. Black wants a kill.} 37. d6 $2 {[%emt 0:00:41]} (37. Qe6 Qxe6 38. dxe6 Rxe8 39. gxf4) 37... fxg3 $2 {[%emt 0:01:25]} (37... f3+ $19 {is more deadly.} 38. Kg1 Qd2) 38. Rxg3 $17 {[%emt 0:00:25]} Qd2 $2 {[%emt 0:00:00][%mdl 8192] [#]} (38... Qf4 $17 {and life is bright.} 39. Qxc5 Qe4+ 40. Kg1 Rxe8 41. Qxa7 Rg8 42. Rxg8+ Kxg8 43. Qb8+ Kg7 44. Qc7+ Kh6) 39. Kh3 $4 {[%emt 0:00:32][%mdl 8192]} (39. Qxc5 $1 $18 Nd7 (39... Nc6 40. d7) 40. Qe3 Qxe3 41. Rxe3) 39... Qxf2 {[%emt 0:00:18]} (39... Nd3 $142 40. Rxd3 Qxd3+ 41. Kh4 Qd4+ 42. Qg4 Rxe8 43. f4 Rg8 44. Qg5 Rxg5 45. Kxg5 Qxc4 46. f5 Qd5 47. Kf4 Qxd6+ 48. Ke3 c4 49. f6 Qxf6 50. Ke4 Qd6 51. Ke3 c3 52. Ke4 c2 53. Ke3 c1=Q+ 54. Ke2 Qcf4 55. Ke1 Qdd2#) 40. Qa8 {[%emt 0:00:32]} Qf5+ {[%emt 0:00:19] Black mates.} 41. Kg2 {[%emt 0:00:11]} Qf1+ {[%emt 0:00:47]} 42. Kh2 {[%emt 0:00:06]} Rf2+ {[%emt 0:00:00] Weighted Error Value: White=0.77/Black=0.71} 0-1